[Event "Titled Tuesday Blitz November 08 Late 2022"]
[White "Kravtsiv, Martyn"]
[Black "Korkmaz, Necmettin"]
[WhiteFideId "14113147"]
[BlackFideId "6303285"]
[WhiteElo "2694"]
[BlackElo "2094"]
[Result "0-1"]
[Round "05"]
[TimeControl "180+1"]
[Date "2022.11.09"]
[WhiteClock "0:00:01"]
[BlackClock "0:00:08"]

1. e4 {[%clk 0:03:00]}  e5 {[%clk 0:02:54]} 2. Nf3 {[%clk 0:03:01]}  Nc6 {[%clk 0:02:53]} 3. Nc3 {[%clk 0:03:01]}  Nf6 {[%clk 0:02:53]} 4. a4 {[%clk 0:03:00]}  Bb4 {[%clk 0:02:42]} 5. Bd3 {[%clk 0:03:00]}  O-O {[%clk 0:02:30]} 6. O-O {[%clk 0:02:58]}  d5 {[%clk 0:02:29]} 7. Nxd5 {[%clk 0:02:46]}  Nxd5 {[%clk 0:02:29]} 8. exd5 {[%clk 0:02:47]}  Qxd5 {[%clk 0:02:28]} 9. Qe2 {[%clk 0:02:45]}  Nd4 {[%clk 0:02:21]} 10. Qe4 {[%clk 0:02:20]}  Nxf3+ {[%clk 0:02:16]} 11. gxf3 {[%clk 0:02:19]}  Qxe4 {[%clk 0:02:17]} 12. fxe4 {[%clk 0:02:19]}  Bh3 {[%clk 0:02:11]} 13. Rd1 {[%clk 0:02:19]}  f5 {[%clk 0:02:06]} 14. exf5 {[%clk 0:02:12]}  Bxf5 {[%clk 0:02:06]} 15. Bxf5 {[%clk 0:02:12]}  Rxf5 {[%clk 0:02:06]} 16. d3 {[%clk 0:02:12]}  Bc5 {[%clk 0:02:06]} 17. Be3 {[%clk 0:02:13]}  Bxe3 {[%clk 0:02:06]} 18. fxe3 {[%clk 0:02:13]}  Raf8 {[%clk 0:02:04]} 19. Rd2 {[%clk 0:02:12]}  Rf3 {[%clk 0:01:59]} 20. Re1 {[%clk 0:02:07]}  R8f6 {[%clk 0:01:58]} 21. a5 {[%clk 0:02:05]}  Kf7 {[%clk 0:01:56]} 22. Rg2 {[%clk 0:02:04]}  g6 {[%clk 0:01:55]} 23. Rg3 {[%clk 0:01:58]}  Rf2 {[%clk 0:01:49]} 24. Rg2 {[%clk 0:01:59]}  R2f3 {[%clk 0:01:39]} 25. b4 {[%clk 0:01:44]}  h6 {[%clk 0:01:38]} 26. Rg3 {[%clk 0:01:42]}  Rf2 {[%clk 0:01:37]} 27. Rg2 {[%clk 0:01:42]}  R2f3 {[%clk 0:01:37]} 28. h4 {[%clk 0:01:31]}  Rh3 {[%clk 0:01:33]} 29. d4 {[%clk 0:01:22]}  Rxh4 {[%clk 0:01:26]} 30. dxe5 {[%clk 0:01:16]}  Re6 {[%clk 0:01:20]} 31. Rf2+ {[%clk 0:01:12]}  Ke7 {[%clk 0:01:20]} 32. Rf4 {[%clk 0:01:04]}  Rh5 {[%clk 0:01:19]} 33. Ref1 {[%clk 0:01:03]}  Rg5+ {[%clk 0:01:15]} 34. Kh2 {[%clk 0:01:02]}  Rgxe5 {[%clk 0:01:10]} 35. Rf7+ {[%clk 0:01:02]}  Ke8 {[%clk 0:01:09]} 36. Rxc7 {[%clk 0:00:51]}  Rxe3 {[%clk 0:01:09]} 37. Rxb7 {[%clk 0:00:47]}  Re2+ {[%clk 0:01:08]} 38. Kg3 {[%clk 0:00:41]}  h5 {[%clk 0:00:57]} 39. Rxa7 {[%clk 0:00:25]}  g5 {[%clk 0:00:56]} 40. Rf3 {[%clk 0:00:19]}  R6e4 {[%clk 0:00:53]} 41. Rc3 {[%clk 0:00:16]}  h4+ {[%clk 0:00:37]} 42. Kh3 {[%clk 0:00:16]}  R2e3+ {[%clk 0:00:23]} 43. Rxe3 {[%clk 0:00:15]}  Rxe3+ {[%clk 0:00:24]} 44. Kg4 {[%clk 0:00:15]}  Rg3+ {[%clk 0:00:21]} 45. Kf5 {[%clk 0:00:15]}  h3 {[%clk 0:00:18]} 46. Rh7 {[%clk 0:00:15]}  g4 {[%clk 0:00:18]} 47. a6 {[%clk 0:00:16]}  Ra3 {[%clk 0:00:18]} 48. a7 {[%clk 0:00:15]}  Rxa7 {[%clk 0:00:17]} 49. Rh8+ {[%clk 0:00:08]}  Kd7 {[%clk 0:00:17]} 50. Kxg4 {[%clk 0:00:08]}  Kc6 {[%clk 0:00:17]} 51. Rxh3 {[%clk 0:00:06]}  Kb5 {[%clk 0:00:17]} 52. c3 {[%clk 0:00:06]}  Rf7 {[%clk 0:00:16]} 53. Rf3 {[%clk 0:00:06]}  Re7 {[%clk 0:00:15]} 54. Rf5+ {[%clk 0:00:06]}  Kc4 {[%clk 0:00:15]} 55. Rc5+ {[%clk 0:00:06]}  Kb3 {[%clk 0:00:14]} 56. Kf5 {[%clk 0:00:06]}  Ka4 {[%clk 0:00:13]} 57. Kf6 {[%clk 0:00:06]}  Re1 {[%clk 0:00:13]} 58. b5 {[%clk 0:00:05]}  Ka5 {[%clk 0:00:13]} 59. c4 {[%clk 0:00:05]}  Kb6 {[%clk 0:00:11]} 60. Rc6+ {[%clk 0:00:05]}  Kb7 {[%clk 0:00:12]} 61. Kf5 {[%clk 0:00:06]}  Re2 {[%clk 0:00:11]} 62. Re6 {[%clk 0:00:04]}  Rc2 {[%clk 0:00:11]} 63. Re4 {[%clk 0:00:04]}  Kb6 {[%clk 0:00:11]} 64. Re6+ {[%clk 0:00:03]}  Kb7 {[%clk 0:00:11]} 65. Rc6 {[%clk 0:00:04]}  Re2 {[%clk 0:00:11]} 66. Kf4 {[%clk 0:00:04]}  Re1 {[%clk 0:00:11]} 67. Kf3 {[%clk 0:00:03]}  Re8 {[%clk 0:00:11]} 68. c5 {[%clk 0:00:02]}  Re1 {[%clk 0:00:10]} 69. Rh6 {[%clk 0:00:02]}  Re7 {[%clk 0:00:09]} 70. Kf4 {[%clk 0:00:01]}  Ka7 {[%clk 0:00:08]} 71. Rh5 {[%clk 0:00:01]}  Kb7 {[%clk 0:00:08]} 0-1


[Site "https://www.chess.com"]

[Event "Titled Tuesday Blitz November 08 Late 2022"]
[White "Kumala, Aleksander"]
[Black "Alexikov, Alexander"]
[WhiteFideId "1141880"]
[BlackFideId "14103958"]
[WhiteElo "2269"]
[BlackElo "2222"]
[Result "1-0"]
[Round "05"]
[TimeControl "180+1"]
[Date "2022.11.09"]
[WhiteClock "0:01:28"]
[BlackClock "0:00:02"]

1. d4 {[%clk 0:03:00]}  Nf6 {[%clk 0:02:59]} 2. Bg5 {[%clk 0:03:00]}  e6 {[%clk 0:02:58]} 3. Nd2 {[%clk 0:03:00]}  h6 {[%clk 0:02:58]} 4. Bh4 {[%clk 0:03:00]}  d6 {[%clk 0:02:57]} 5. e3 {[%clk 0:03:00]}  Be7 {[%clk 0:02:56]} 6. Bd3 {[%clk 0:02:58]}  b6 {[%clk 0:02:56]} 7. Qf3 {[%clk 0:02:55]}  c6 {[%clk 0:02:49]} 8. c3 {[%clk 0:02:53]}  Qc7 {[%clk 0:02:47]} 9. Ne2 {[%clk 0:02:49]}  Bb7 {[%clk 0:02:45]} 10. O-O {[%clk 0:02:46]}  Nbd7 {[%clk 0:02:44]} 11. a4 {[%clk 0:02:44]}  c5 {[%clk 0:02:39]} 12. e4 {[%clk 0:02:40]}  g5 {[%clk 0:02:17]} 13. Bg3 {[%clk 0:02:39]}  h5 {[%clk 0:02:14]} 14. h4 {[%clk 0:02:35]}  g4 {[%clk 0:02:00]} 15. Qe3 {[%clk 0:02:35]}  e5 {[%clk 0:01:55]} 16. a5 {[%clk 0:02:26]}  Bf8 {[%clk 0:01:45]} 17. a6 {[%clk 0:02:26]}  Bc8 {[%clk 0:01:40]} 18. f4 {[%clk 0:02:13]}  gxf3 {[%clk 0:01:25]} 19. Qxf3 {[%clk 0:02:09]}  Bh6 {[%clk 0:01:21]} 20. dxe5 {[%clk 0:02:00]}  dxe5 {[%clk 0:01:18]} 21. Nc4 {[%clk 0:01:58]}  Bg7 {[%clk 0:00:52]} 22. Ne3 {[%clk 0:01:47]}  Rf8 {[%clk 0:00:32]} 23. Bb5 {[%clk 0:01:43]}  Bh6 {[%clk 0:00:04]} 24. Nf5 {[%clk 0:01:36]}  Bf4 {[%clk 0:00:03]} 25. Nxf4 {[%clk 0:01:34]}  exf4 {[%clk 0:00:02]} 26. Bxf4 {[%clk 0:01:35]}  Qd8 {[%clk 0:00:02]} 27. Nd6+ {[%clk 0:01:28]} 1-0


[Site "https://www.chess.com"]

[Event "Titled Tuesday Blitz November 08 Late 2022"]
[White "Lopez Perdomo, Juan David"]
[Black "Ansh M Shah"]
[WhiteFideId "4405137"]
[BlackFideId "25033379"]
[WhiteElo "1965"]
[BlackElo "2084"]
[Result "0-1"]
[Round "05"]
[TimeControl "180+1"]
[Date "2022.11.09"]
[WhiteClock "0:00:27"]
[BlackClock "0:00:39"]

1. e4 {[%clk 0:02:52]}  c6 {[%clk 0:02:57]} 2. d4 {[%clk 0:02:52]}  d5 {[%clk 0:02:58]} 3. Nc3 {[%clk 0:02:52]}  dxe4 {[%clk 0:02:59]} 4. Nxe4 {[%clk 0:02:53]}  Nf6 {[%clk 0:02:59]} 5. Nxf6+ {[%clk 0:02:54]}  exf6 {[%clk 0:03:00]} 6. Be3 {[%clk 0:02:54]}  Bd6 {[%clk 0:03:01]} 7. Qd2 {[%clk 0:02:55]}  O-O {[%clk 0:03:02]} 8. O-O-O {[%clk 0:02:56]}  Bf5 {[%clk 0:03:02]} 9. Kb1 {[%clk 0:02:57]}  Nd7 {[%clk 0:03:02]} 10. Bd3 {[%clk 0:02:57]}  Bxd3 {[%clk 0:03:01]} 11. Qxd3 {[%clk 0:02:57]}  b5 {[%clk 0:03:02]} 12. Ne2 {[%clk 0:02:58]}  Nb6 {[%clk 0:03:00]} 13. Bf4 {[%clk 0:02:58]}  Nd5 {[%clk 0:02:58]} 14. Bxd6 {[%clk 0:02:57]}  Qxd6 {[%clk 0:02:59]} 15. Nc3 {[%clk 0:02:55]}  Rfe8 {[%clk 0:02:56]} 16. Qg3 {[%clk 0:02:52]}  Qxg3 {[%clk 0:02:55]} 17. hxg3 {[%clk 0:02:52]}  Nxc3+ {[%clk 0:02:56]} 18. bxc3 {[%clk 0:02:52]}  Re2 {[%clk 0:02:54]} 19. Rhf1 {[%clk 0:02:41]}  g6 {[%clk 0:02:19]} 20. Kc1 {[%clk 0:02:40]}  f5 {[%clk 0:02:11]} 21. Rd2 {[%clk 0:02:41]}  Rae8 {[%clk 0:02:04]} 22. Rxe2 {[%clk 0:02:39]}  Rxe2 {[%clk 0:02:04]} 23. Kd1 {[%clk 0:02:40]}  Re6 {[%clk 0:02:03]} 24. Kd2 {[%clk 0:02:40]}  Kf8 {[%clk 0:02:03]} 25. a4 {[%clk 0:02:39]}  a6 {[%clk 0:02:01]} 26. a5 {[%clk 0:02:34]}  Ke7 {[%clk 0:02:00]} 27. f3 {[%clk 0:02:30]}  Kd6 {[%clk 0:02:00]} 28. g4 {[%clk 0:02:26]}  fxg4 {[%clk 0:01:51]} 29. fxg4 {[%clk 0:02:27]}  f6 {[%clk 0:01:51]} 30. Rh1 {[%clk 0:02:28]}  Re7 {[%clk 0:01:52]} 31. Rf1 {[%clk 0:02:27]}  Ke6 {[%clk 0:01:50]} 32. Rh1 {[%clk 0:02:17]}  f5 {[%clk 0:01:45]} 33. gxf5+ {[%clk 0:02:14]}  Kxf5 {[%clk 0:01:46]} 34. Rf1+ {[%clk 0:02:12]}  Kg5 {[%clk 0:01:41]} 35. Rf3 {[%clk 0:01:58]}  h5 {[%clk 0:01:38]} 36. Rd3 {[%clk 0:01:57]}  Kg4 {[%clk 0:01:34]} 37. d5 {[%clk 0:01:54]}  cxd5 {[%clk 0:01:34]} 38. Rxd5 {[%clk 0:01:55]}  Re6 {[%clk 0:01:33]} 39. c4 {[%clk 0:01:50]}  bxc4 {[%clk 0:01:33]} 40. Kc3 {[%clk 0:01:50]}  Rc6 {[%clk 0:01:28]} 41. Kd4 {[%clk 0:01:39]}  h4 {[%clk 0:01:26]} 42. Ke3 {[%clk 0:01:33]}  g5 {[%clk 0:01:21]} 43. Kf2 {[%clk 0:01:31]}  Rf6+ {[%clk 0:01:20]} 44. Kg1 {[%clk 0:01:31]}  Rc6 {[%clk 0:01:01]} 45. Kh2 {[%clk 0:01:24]}  Kf4 {[%clk 0:01:00]} 46. Kh3 {[%clk 0:01:18]}  c3 {[%clk 0:00:57]} 47. Rd4+ {[%clk 0:01:13]}  Ke3 {[%clk 0:00:56]} 48. Rg4 {[%clk 0:01:14]}  Rc5 {[%clk 0:00:51]} 49. Ra4 {[%clk 0:01:11]}  Kd2 {[%clk 0:00:49]} 50. Ra2 {[%clk 0:01:11]}  Rc4 {[%clk 0:00:46]} 51. g3 {[%clk 0:01:05]}  g4+ {[%clk 0:00:44]} 52. Kxh4 {[%clk 0:01:04]}  Rb4 {[%clk 0:00:43]} 53. Kg5 {[%clk 0:00:51]}  Kc1 {[%clk 0:00:42]} 54. Kf5 {[%clk 0:00:45]}  Kb1 {[%clk 0:00:41]} 55. Ra3 {[%clk 0:00:40]}  Kb2 {[%clk 0:00:42]} 56. Rb3+ {[%clk 0:00:25]}  Rxb3 {[%clk 0:00:42]} 57. cxb3 {[%clk 0:00:26]}  Kxb3 {[%clk 0:00:39]} 58. Kxg4 {[%clk 0:00:27]}  c2 {[%clk 0:00:40]} 59. Kg5 {[%clk 0:00:27]}  c1=Q+ {[%clk 0:00:40]} 60. Kf6 {[%clk 0:00:27]}  Qc3+ {[%clk 0:00:39]} 0-1


[Site "https://www.chess.com"]

[Event "Titled Tuesday Blitz November 08 Late 2022"]
[White "Makaraci, Tunahan"]
[Black "Thomforde-Toates, Noah"]
[WhiteFideId "6356559"]
[BlackFideId "30951992"]
[WhiteElo "2161"]
[BlackElo "2619"]
[Result "1-0"]
[Round "05"]
[TimeControl "180+1"]
[Date "2022.11.09"]
[WhiteClock "0:00:51"]
[BlackClock "0:00:31"]

1. e4 {[%clk 0:02:57]}  c5 {[%clk 0:02:58]} 2. c3 {[%clk 0:02:56]}  d5 {[%clk 0:02:57]} 3. exd5 {[%clk 0:02:56]}  Qxd5 {[%clk 0:02:58]} 4. d4 {[%clk 0:02:57]}  Nc6 {[%clk 0:02:56]} 5. Nf3 {[%clk 0:02:57]}  Bg4 {[%clk 0:02:56]} 6. dxc5 {[%clk 0:02:57]}  Qxc5 {[%clk 0:02:53]} 7. Be3 {[%clk 0:02:56]}  Qh5 {[%clk 0:02:51]} 8. Be2 {[%clk 0:02:56]}  Nf6 {[%clk 0:02:50]} 9. h3 {[%clk 0:02:56]}  Bxf3 {[%clk 0:02:49]} 10. Bxf3 {[%clk 0:02:56]}  Qb5 {[%clk 0:02:49]} 11. Qb3 {[%clk 0:02:44]}  Qxb3 {[%clk 0:02:46]} 12. axb3 {[%clk 0:02:44]}  e6 {[%clk 0:02:43]} 13. Bxc6+ {[%clk 0:02:38]}  bxc6 {[%clk 0:02:42]} 14. Rxa7 {[%clk 0:02:39]}  Rxa7 {[%clk 0:02:39]} 15. Bxa7 {[%clk 0:02:40]}  c5 {[%clk 0:02:39]} 16. Nd2 {[%clk 0:02:34]}  Kd7 {[%clk 0:02:36]} 17. Ke2 {[%clk 0:02:34]}  Bd6 {[%clk 0:02:32]} 18. Ra1 {[%clk 0:02:29]}  Ra8 {[%clk 0:02:31]} 19. Nc4 {[%clk 0:02:29]}  Bc7 {[%clk 0:02:06]} 20. Ra3 {[%clk 0:01:52]}  Nd5 {[%clk 0:01:48]} 21. Bxc5 {[%clk 0:01:49]}  Rb8 {[%clk 0:01:40]} 22. b4 {[%clk 0:01:47]}  Nf4+ {[%clk 0:01:40]} 23. Kf3 {[%clk 0:01:47]}  Nd3 {[%clk 0:01:40]} 24. Be3 {[%clk 0:01:35]}  Ne1+ {[%clk 0:01:38]} 25. Ke2 {[%clk 0:01:34]}  Nxg2 {[%clk 0:01:38]} 26. Ra7 {[%clk 0:01:34]}  Kc6 {[%clk 0:01:35]} 27. Na5+ {[%clk 0:01:29]}  Kd7 {[%clk 0:01:29]} 28. Nb3 {[%clk 0:01:25]}  f5 {[%clk 0:01:19]} 29. Nc5+ {[%clk 0:01:21]}  Kd6 {[%clk 0:01:17]} 30. Nxe6 {[%clk 0:01:10]}  Kxe6 {[%clk 0:01:15]} 31. Rxc7 {[%clk 0:01:08]}  Rg8 {[%clk 0:01:08]} 32. b5 {[%clk 0:01:07]}  Nh4 {[%clk 0:01:01]} 33. b6 {[%clk 0:01:06]}  Ng6 {[%clk 0:00:59]} 34. b7 {[%clk 0:01:06]}  Rb8 {[%clk 0:00:56]} 35. Ba7 {[%clk 0:01:05]}  Nf4+ {[%clk 0:00:54]} 36. Kf3 {[%clk 0:01:03]}  Rxb7 {[%clk 0:00:53]} 37. Rxb7 {[%clk 0:01:03]}  Nxh3 {[%clk 0:00:54]} 38. Be3 {[%clk 0:01:02]}  Kf6 {[%clk 0:00:53]} 39. Rd7 {[%clk 0:00:58]}  g5 {[%clk 0:00:52]} 40. b4 {[%clk 0:00:56]}  h5 {[%clk 0:00:51]} 41. b5 {[%clk 0:00:56]}  h4 {[%clk 0:00:51]} 42. b6 {[%clk 0:00:56]}  g4+ {[%clk 0:00:52]} 43. Kg2 {[%clk 0:00:56]}  f4 {[%clk 0:00:53]} 44. b7 {[%clk 0:00:56]}  fxe3 {[%clk 0:00:36]} 45. fxe3 {[%clk 0:00:54]}  Ng5 {[%clk 0:00:35]} 46. b8=Q {[%clk 0:00:53]}  h3+ {[%clk 0:00:35]} 47. Kf1 {[%clk 0:00:53]}  Ne6 {[%clk 0:00:31]} 48. Rd6 {[%clk 0:00:52]}  Kf5 {[%clk 0:00:31]} 49. Rxe6 {[%clk 0:00:52]}  Kxe6 {[%clk 0:00:32]} 50. Qf4 {[%clk 0:00:51]}  h2 {[%clk 0:00:31]} 51. Qxh2 {[%clk 0:00:51]}  g3 {[%clk 0:00:31]} 52. Qxg3 {[%clk 0:00:51]} 1-0


[Site "https://www.chess.com"]

[Event "Titled Tuesday Blitz November 08 Late 2022"]
[White "Martic, Ivan"]
[Black "Dzierzak, Radoslaw"]
[WhiteFideId "929301"]
[BlackFideId "1161407"]
[WhiteElo "2355"]
[BlackElo "2111"]
[Result "1-0"]
[Round "05"]
[TimeControl "180+1"]
[Date "2022.11.09"]
[WhiteClock "0:00:46"]
[BlackClock "0:00:02"]

1. Nf3 {[%clk 0:03:00]}  Nf6 {[%clk 0:02:52]} 2. g3 {[%clk 0:03:00]}  d5 {[%clk 0:02:51]} 3. Bg2 {[%clk 0:02:59]}  e6 {[%clk 0:02:52]} 4. O-O {[%clk 0:02:58]}  c5 {[%clk 0:02:52]} 5. d3 {[%clk 0:02:58]}  Nc6 {[%clk 0:02:52]} 6. Nbd2 {[%clk 0:02:58]}  Be7 {[%clk 0:02:53]} 7. e4 {[%clk 0:02:58]}  Qc7 {[%clk 0:02:52]} 8. Re1 {[%clk 0:02:58]}  dxe4 {[%clk 0:02:53]} 9. dxe4 {[%clk 0:02:57]}  e5 {[%clk 0:02:53]} 10. c3 {[%clk 0:02:57]}  Be6 {[%clk 0:02:54]} 11. a4 {[%clk 0:02:55]}  O-O {[%clk 0:02:51]} 12. Ng5 {[%clk 0:02:54]}  Bd7 {[%clk 0:02:51]} 13. Nc4 {[%clk 0:02:48]}  h6 {[%clk 0:02:49]} 14. Nf3 {[%clk 0:02:48]}  Be6 {[%clk 0:02:50]} 15. Bf1 {[%clk 0:02:42]}  Rfd8 {[%clk 0:02:46]} 16. Qc2 {[%clk 0:02:42]}  a6 {[%clk 0:02:31]} 17. Ne3 {[%clk 0:02:39]}  Bf8 {[%clk 0:02:20]} 18. Bc4 {[%clk 0:02:35]}  Bxc4 {[%clk 0:02:06]} 19. Nxc4 {[%clk 0:02:36]}  Re8 {[%clk 0:02:05]} 20. a5 {[%clk 0:02:33]}  Rad8 {[%clk 0:02:04]} 21. Nfd2 {[%clk 0:02:13]}  Re7 {[%clk 0:01:38]} 22. Kg2 {[%clk 0:02:09]}  Red7 {[%clk 0:01:35]} 23. Nf1 {[%clk 0:02:09]}  Ne8 {[%clk 0:01:28]} 24. Nfe3 {[%clk 0:02:06]}  Nd6 {[%clk 0:01:27]} 25. Nd5 {[%clk 0:02:06]}  Qb8 {[%clk 0:01:22]} 26. Ncb6 {[%clk 0:02:05]}  Ne7 {[%clk 0:01:09]} 27. Nxd7 {[%clk 0:02:04]}  Rxd7 {[%clk 0:01:10]} 28. Nxe7+ {[%clk 0:01:58]}  Bxe7 {[%clk 0:01:11]} 29. Rd1 {[%clk 0:01:57]}  Qd8 {[%clk 0:01:11]} 30. c4 {[%clk 0:01:49]}  Ne8 {[%clk 0:01:04]} 31. Rxd7 {[%clk 0:01:46]}  Qxd7 {[%clk 0:01:05]} 32. Be3 {[%clk 0:01:43]}  Nc7 {[%clk 0:01:03]} 33. Rd1 {[%clk 0:01:42]}  Qc6 {[%clk 0:01:03]} 34. f3 {[%clk 0:01:39]}  Ne6 {[%clk 0:01:03]} 35. Rd5 {[%clk 0:01:38]}  f6 {[%clk 0:01:01]} 36. b3 {[%clk 0:01:27]}  Nd4 {[%clk 0:01:01]} 37. Bxd4 {[%clk 0:01:26]}  cxd4 {[%clk 0:01:01]} 38. Qa2 {[%clk 0:01:20]}  Kf7 {[%clk 0:00:54]} 39. Qa4 {[%clk 0:01:17]}  Qxa4 {[%clk 0:00:52]} 40. bxa4 {[%clk 0:01:18]}  Ke6 {[%clk 0:00:50]} 41. f4 {[%clk 0:01:14]}  Bb4 {[%clk 0:00:45]} 42. fxe5 {[%clk 0:01:04]}  fxe5 {[%clk 0:00:44]} 43. Kf3 {[%clk 0:01:04]}  h5 {[%clk 0:00:36]} 44. h3 {[%clk 0:01:03]}  g6 {[%clk 0:00:36]} 45. g4 {[%clk 0:01:04]}  Be1 {[%clk 0:00:23]} 46. gxh5 {[%clk 0:00:59]}  gxh5 {[%clk 0:00:23]} 47. Ke2 {[%clk 0:00:59]}  Bb4 {[%clk 0:00:23]} 48. Kd3 {[%clk 0:00:58]}  Be7 {[%clk 0:00:19]} 49. c5 {[%clk 0:00:56]}  Bf8 {[%clk 0:00:16]} 50. Kc4 {[%clk 0:00:56]}  Be7 {[%clk 0:00:15]} 51. Kb4 {[%clk 0:00:51]}  Bf8 {[%clk 0:00:09]} 52. Rd8 {[%clk 0:00:51]}  Be7 {[%clk 0:00:08]} 53. Rb8 {[%clk 0:00:50]}  d3 {[%clk 0:00:06]} 54. Kc3 {[%clk 0:00:49]}  Bxc5 {[%clk 0:00:05]} 55. Rxb7 {[%clk 0:00:46]}  d2 {[%clk 0:00:02]} 56. Kxd2 {[%clk 0:00:46]} 1-0


[Site "https://www.chess.com"]

[Event "Titled Tuesday Blitz November 08 Late 2022"]
[White "Martinez Reyes, Pedro Ramon"]
[Black "Aung Thant Zin"]
[WhiteFideId "3901807"]
[BlackFideId "13000063"]
[WhiteElo "2354"]
[BlackElo "2278"]
[Result "1-0"]
[Round "05"]
[TimeControl "180+1"]
[Date "2022.11.09"]
[WhiteClock "0:01:40"]
[BlackClock "0:00:10"]

1. Nf3 {[%clk 0:03:00]}  d5 {[%clk 0:02:56]} 2. g3 {[%clk 0:03:01]}  e6 {[%clk 0:02:56]} 3. Bg2 {[%clk 0:03:02]}  Nf6 {[%clk 0:02:56]} 4. O-O {[%clk 0:03:03]}  Be7 {[%clk 0:02:57]} 5. d4 {[%clk 0:03:04]}  O-O {[%clk 0:02:57]} 6. c4 {[%clk 0:03:05]}  b6 {[%clk 0:02:55]} 7. cxd5 {[%clk 0:03:04]}  exd5 {[%clk 0:02:54]} 8. Nc3 {[%clk 0:03:05]}  Bb7 {[%clk 0:02:54]} 9. Ne5 {[%clk 0:03:06]}  Nbd7 {[%clk 0:02:53]} 10. Bf4 {[%clk 0:03:05]}  Ne4 {[%clk 0:02:36]} 11. Qb3 {[%clk 0:02:57]}  Nxe5 {[%clk 0:02:26]} 12. Nxe4 {[%clk 0:02:57]}  Nc4 {[%clk 0:02:13]} 13. Nd2 {[%clk 0:02:54]}  g5 {[%clk 0:02:04]} 14. Be3 {[%clk 0:02:47]}  Nxe3 {[%clk 0:01:59]} 15. Qxe3 {[%clk 0:02:46]}  Bf6 {[%clk 0:01:51]} 16. Nf3 {[%clk 0:02:41]}  Re8 {[%clk 0:01:46]} 17. Qd2 {[%clk 0:02:42]}  g4 {[%clk 0:01:40]} 18. Ne1 {[%clk 0:02:42]}  Qe7 {[%clk 0:01:37]} 19. e3 {[%clk 0:02:41]}  c5 {[%clk 0:01:30]} 20. dxc5 {[%clk 0:02:31]}  bxc5 {[%clk 0:01:29]} 21. Nd3 {[%clk 0:02:32]}  d4 {[%clk 0:01:16]} 22. Bxb7 {[%clk 0:02:31]}  Qxb7 {[%clk 0:01:15]} 23. Nxc5 {[%clk 0:02:30]}  Qd5 {[%clk 0:01:15]} 24. exd4 {[%clk 0:02:29]}  Bxd4 {[%clk 0:01:15]} 25. Nb3 {[%clk 0:02:29]}  Rad8 {[%clk 0:01:11]} 26. Rad1 {[%clk 0:02:28]}  Re4 {[%clk 0:01:06]} 27. Rfe1 {[%clk 0:01:59]}  Rxe1+ {[%clk 0:00:57]} 28. Rxe1 {[%clk 0:01:58]}  Bf6 {[%clk 0:00:48]} 29. Re8+ {[%clk 0:01:50]}  Kg7 {[%clk 0:00:47]} 30. Rxd8 {[%clk 0:01:50]}  Qxd8 {[%clk 0:00:47]} 31. Qxd8 {[%clk 0:01:44]}  Bxd8 {[%clk 0:00:47]} 32. Nd2 {[%clk 0:01:45]}  f5 {[%clk 0:00:45]} 33. f3 {[%clk 0:01:43]}  h5 {[%clk 0:00:44]} 34. Kg2 {[%clk 0:01:42]}  Kf6 {[%clk 0:00:43]} 35. f4 {[%clk 0:01:41]}  Ke6 {[%clk 0:00:42]} 36. Kf2 {[%clk 0:01:41]}  Bb6+ {[%clk 0:00:40]} 37. Ke2 {[%clk 0:01:41]}  Kd5 {[%clk 0:00:40]} 38. Kd3 {[%clk 0:01:41]}  Bg1 {[%clk 0:00:39]} 39. Nf1 {[%clk 0:01:42]}  a6 {[%clk 0:00:36]} 40. Ne3+ {[%clk 0:01:42]}  Ke6 {[%clk 0:00:34]} 41. Nf1 {[%clk 0:01:42]}  Kd5 {[%clk 0:00:34]} 42. b4 {[%clk 0:01:42]}  Kd6 {[%clk 0:00:16]} 43. Kc4 {[%clk 0:01:41]}  Kc6 {[%clk 0:00:16]} 44. a4 {[%clk 0:01:41]}  Kd6 {[%clk 0:00:15]} 45. Kd3 {[%clk 0:01:41]}  Kd5 {[%clk 0:00:15]} 46. Ne3+ {[%clk 0:01:41]}  Ke6 {[%clk 0:00:13]} 47. Nf1 {[%clk 0:01:38]}  Kd5 {[%clk 0:00:13]} 48. Kc3 {[%clk 0:01:38]}  Kc6 {[%clk 0:00:12]} 49. Kc4 {[%clk 0:01:38]}  Kb6 {[%clk 0:00:12]} 50. Kd5 {[%clk 0:01:38]}  a5 {[%clk 0:00:11]} 51. bxa5+ {[%clk 0:01:37]}  Kxa5 {[%clk 0:00:11]} 52. Ke6 {[%clk 0:01:38]}  Kxa4 {[%clk 0:00:11]} 53. Kxf5 {[%clk 0:01:39]}  Kb3 {[%clk 0:00:12]} 54. Kg6 {[%clk 0:01:40]}  Ka4 {[%clk 0:00:10]} 55. Kxh5 {[%clk 0:01:40]} 1-0


[Site "https://www.chess.com"]